[Event "Titled Tuesday Blitz August 08 Late 2023"]
[White "Francisco_Ferrari"]
[Black "Hristodoulou, Panagiotis"]
[BlackFideId "4214340"]
[WhiteElo "2180"]
[BlackElo "2457"]
[Result "0-1"]
[Round "2"]
[TimeControl "180+1"]
[Date "2023.08.08"]
[WhiteClock "0:00:02"]
[BlackClock "0:00:30"]
[Board "183"]

1. e4 {[%clk 0:02:59]}  Nf6 {[%clk 0:03:00]} 2. e5 {[%clk 0:02:54]}  Nd5 {[%clk 0:03:00]} 3. d4 {[%clk 0:02:52]}  d6 {[%clk 0:03:00]} 4. c4 {[%clk 0:02:52]}  Nb6 {[%clk 0:03:01]} 5. f4 {[%clk 0:02:52]}  g6 {[%clk 0:03:00]} 6. Nf3 {[%clk 0:02:51]}  Bg7 {[%clk 0:03:00]} 7. Nc3 {[%clk 0:02:48]}  O-O {[%clk 0:02:59]} 8. Be3 {[%clk 0:02:45]}  Be6 {[%clk 0:02:55]} 9. d5 {[%clk 0:02:18]}  Bg4 {[%clk 0:02:55]} 10. Bd4 {[%clk 0:02:07]}  c5 {[%clk 0:02:54]} 11. Be3 {[%clk 0:01:57]}  N6d7 {[%clk 0:02:32]} 12. h3 {[%clk 0:01:37]}  Bxf3 {[%clk 0:02:29]} 13. Qxf3 {[%clk 0:01:37]}  dxe5 {[%clk 0:02:30]} 14. f5 {[%clk 0:01:33]}  Na6 {[%clk 0:02:17]} 15. g4 {[%clk 0:01:20]}  Qb6 {[%clk 0:02:02]} 16. O-O-O {[%clk 0:01:13]}  e4 {[%clk 0:01:59]} 17. Qxe4 {[%clk 0:01:10]}  Bxc3 {[%clk 0:01:58]} 18. bxc3 {[%clk 0:01:11]}  Qa5 {[%clk 0:01:57]} 19. Qc2 {[%clk 0:01:07]}  Nc7 {[%clk 0:01:34]} 20. h4 {[%clk 0:01:02]}  b5 {[%clk 0:01:18]} 21. h5 {[%clk 0:00:57]}  g5 {[%clk 0:01:18]} 22. Bxg5 {[%clk 0:00:52]}  bxc4 {[%clk 0:01:18]} 23. Bxe7 {[%clk 0:00:49]}  Rfe8 {[%clk 0:01:15]} 24. Bxc4 {[%clk 0:00:37]}  Nb6 {[%clk 0:00:56]} 25. Bf1 {[%clk 0:00:12]}  Ncxd5 {[%clk 0:00:52]} 26. Bd6 {[%clk 0:00:09]}  Rad8 {[%clk 0:00:45]} 27. Bg3 {[%clk 0:00:05]}  Ne3 {[%clk 0:00:32]} 28. Rxd8 {[%clk 0:00:06]}  Rxd8 {[%clk 0:00:33]} 29. Qb3 {[%clk 0:00:04]}  Rd1+ {[%clk 0:00:30]} 30. Qxd1 {[%clk 0:00:04]}  Nxd1 {[%clk 0:00:31]} 31. Kxd1 {[%clk 0:00:05]}  Qxc3 {[%clk 0:00:31]} 32. Be1 {[%clk 0:00:05]}  Qf3+ {[%clk 0:00:30]} 33. Kc2 {[%clk 0:00:05]}  Qxh1 {[%clk 0:00:30]} 34. Bd3 {[%clk 0:00:02]}  Qxe1 {[%clk 0:00:30]} 0-1


[Site "https://www.chess.com"]

[Event "Titled Tuesday Blitz August 08 Late 2023"]
[White "Yeritsyan, Hayk"]
[Black "Sabar Ethmane Daouda"]
[WhiteFideId "13307320"]
[BlackFideId "19600097"]
[WhiteElo "2449"]
[BlackElo "2175"]
[Result "0-1"]
[Round "2"]
[TimeControl "180+1"]
[Date "2023.08.08"]
[WhiteClock "0:00:07"]
[BlackClock "0:00:07"]
[Board "184"]

1. d4 {[%clk 0:03:00]}  d5 {[%clk 0:02:56]} 2. Nf3 {[%clk 0:03:00]}  c6 {[%clk 0:02:50]} 3. Bf4 {[%clk 0:02:59]}  e6 {[%clk 0:02:50]} 4. e3 {[%clk 0:02:58]}  f5 {[%clk 0:02:50]} 5. c4 {[%clk 0:02:58]}  Nf6 {[%clk 0:02:50]} 6. Nbd2 {[%clk 0:02:57]}  Nbd7 {[%clk 0:02:44]} 7. Bd3 {[%clk 0:02:56]}  Be7 {[%clk 0:02:36]} 8. O-O {[%clk 0:02:55]}  Nh5 {[%clk 0:02:35]} 9. Be5 {[%clk 0:02:54]}  Nxe5 {[%clk 0:02:32]} 10. Nxe5 {[%clk 0:02:55]}  Nf6 {[%clk 0:02:29]} 11. c5 {[%clk 0:02:53]}  O-O {[%clk 0:02:20]} 12. f4 {[%clk 0:02:48]}  Ne4 {[%clk 0:02:18]} 13. Bxe4 {[%clk 0:02:43]}  fxe4 {[%clk 0:02:19]} 14. Qe2 {[%clk 0:02:43]}  Bd7 {[%clk 0:02:17]} 15. b4 {[%clk 0:02:41]}  Be8 {[%clk 0:02:17]} 16. a4 {[%clk 0:02:39]}  a6 {[%clk 0:02:18]} 17. Qg4 {[%clk 0:02:38]}  Qc8 {[%clk 0:02:13]} 18. Nb3 {[%clk 0:02:29]}  Rf5 {[%clk 0:02:09]} 19. Nc1 {[%clk 0:02:22]}  Bf8 {[%clk 0:01:56]} 20. Ne2 {[%clk 0:02:19]}  Bh5 {[%clk 0:01:55]} 21. Qh3 {[%clk 0:01:46]}  Bxe2 {[%clk 0:01:54]} 22. Rfe1 {[%clk 0:01:44]}  Bd3 {[%clk 0:01:39]} 23. g4 {[%clk 0:01:42]}  Rf6 {[%clk 0:01:36]} 24. Rad1 {[%clk 0:01:37]}  a5 {[%clk 0:01:07]} 25. Nxd3 {[%clk 0:01:33]}  exd3 {[%clk 0:01:08]} 26. b5 {[%clk 0:01:34]}  b6 {[%clk 0:00:53]} 27. cxb6 {[%clk 0:01:23]}  cxb5 {[%clk 0:00:53]} 28. axb5 {[%clk 0:01:23]}  Qb7 {[%clk 0:00:45]} 29. g5 {[%clk 0:01:15]}  Rf5 {[%clk 0:00:45]} 30. Rxd3 {[%clk 0:01:15]}  Qxb6 {[%clk 0:00:44]} 31. Rb1 {[%clk 0:01:15]}  Bb4 {[%clk 0:00:43]} 32. Qg2 {[%clk 0:01:11]}  Qxb5 {[%clk 0:00:41]} 33. Qc2 {[%clk 0:01:07]}  Rff8 {[%clk 0:00:36]} 34. Rc3 {[%clk 0:01:02]}  Qe8 {[%clk 0:00:25]} 35. Rc7 {[%clk 0:00:58]}  Rc8 {[%clk 0:00:24]} 36. Rc1 {[%clk 0:00:45]}  Rxc7 {[%clk 0:00:21]} 37. Qxc7 {[%clk 0:00:46]}  Bd2 {[%clk 0:00:20]} 38. Rf1 {[%clk 0:00:35]}  Bxe3+ {[%clk 0:00:20]} 39. Kg2 {[%clk 0:00:36]}  Bxd4 {[%clk 0:00:19]} 40. Re1 {[%clk 0:00:35]}  e5 {[%clk 0:00:16]} 41. fxe5 {[%clk 0:00:29]}  Rf2+ {[%clk 0:00:16]} 42. Kg3 {[%clk 0:00:28]}  Qe6 {[%clk 0:00:11]} 43. Qd8+ {[%clk 0:00:19]}  Kf7 {[%clk 0:00:11]} 44. Qc7+ {[%clk 0:00:18]}  Kg6 {[%clk 0:00:11]} 45. Qc1 {[%clk 0:00:14]}  Qf5 {[%clk 0:00:10]} 46. Qb1 {[%clk 0:00:07]}  Qxb1 {[%clk 0:00:10]} 47. Rxb1 {[%clk 0:00:07]}  Rd2 {[%clk 0:00:08]} 48. Re1 {[%clk 0:00:07]}  a4 {[%clk 0:00:08]} 49. e6 {[%clk 0:00:08]}  Bc5 {[%clk 0:00:07]} 50. e7 {[%clk 0:00:07]}  Bxe7 {[%clk 0:00:07]} 51. Rxe7 {[%clk 0:00:08]}  a3 {[%clk 0:00:08]} 52. Ra7 {[%clk 0:00:09]}  a2 {[%clk 0:00:08]} 53. h4 {[%clk 0:00:09]}  h5 {[%clk 0:00:07]} 54. gxh6 {[%clk 0:00:09]}  gxh6 {[%clk 0:00:07]} 55. Kg4 {[%clk 0:00:10]}  Rd4+ {[%clk 0:00:07]} 56. Kg3 {[%clk 0:00:09]}  Rd2 {[%clk 0:00:06]} 57. Kg4 {[%clk 0:00:10]}  Kf6 {[%clk 0:00:06]} 58. Kf4 {[%clk 0:00:09]}  Ke6 {[%clk 0:00:06]} 59. Ra6+ {[%clk 0:00:09]}  Kd7 {[%clk 0:00:05]} 60. h5 {[%clk 0:00:09]}  Kc7 {[%clk 0:00:04]} 61. Kf5 {[%clk 0:00:09]}  Kb7 {[%clk 0:00:04]} 62. Ra3 {[%clk 0:00:09]}  Rg2 {[%clk 0:00:02]} 63. Ke6 {[%clk 0:00:05]}  Kc6 {[%clk 0:00:03]} 64. Kf6 {[%clk 0:00:04]}  Kc5 {[%clk 0:00:03]} 65. Ra5+ {[%clk 0:00:04]}  Kb4 {[%clk 0:00:03]} 66. Ra8 {[%clk 0:00:04]}  Kb3 {[%clk 0:00:03]} 67. Rb8+ {[%clk 0:00:04]}  Kc2 {[%clk 0:00:03]} 68. Ra8 {[%clk 0:00:05]}  Kb1 {[%clk 0:00:04]} 69. Rb8+ {[%clk 0:00:05]}  Rb2 {[%clk 0:00:03]} 70. Ra8 {[%clk 0:00:05]}  a1=Q {[%clk 0:00:04]} 71. Rxa1+ {[%clk 0:00:05]}  Kxa1 {[%clk 0:00:04]} 72. Kg6 {[%clk 0:00:06]}  Rh2 {[%clk 0:00:05]} 73. Kxh6 {[%clk 0:00:07]}  d4 {[%clk 0:00:04]} 74. Kg5 {[%clk 0:00:07]}  d3 {[%clk 0:00:05]} 75. Kf4 {[%clk 0:00:07]}  d2 {[%clk 0:00:06]} 76. Kg3 {[%clk 0:00:08]}  d1=Q {[%clk 0:00:06]} 77. Kxh2 {[%clk 0:00:07]}  Qxh5+ {[%clk 0:00:07]} 0-1


[Site "https://www.chess.com"]

[Event "Titled Tuesday Blitz August 08 Late 2023"]
[White "Kielinkei"]
[Black "Guevara Sanchez, Erick Marvin"]
[BlackFideId "6700136"]
[WhiteElo "2438"]
[BlackElo "2115"]
[Result "1-0"]
[Round "2"]
[TimeControl "180+1"]
[Date "2023.08.08"]
[WhiteClock "0:00:09"]
[BlackClock "0:00:14"]
[Board "188"]

1. c4 {[%clk 0:03:00]}  e6 {[%clk 0:02:58]} 2. Nc3 {[%clk 0:02:59]}  Nf6 {[%clk 0:02:59]} 3. g3 {[%clk 0:02:59]}  d5 {[%clk 0:02:58]} 4. d4 {[%clk 0:03:00]}  c5 {[%clk 0:02:55]} 5. cxd5 {[%clk 0:02:59]}  exd5 {[%clk 0:02:55]} 6. Nf3 {[%clk 0:02:56]}  Nc6 {[%clk 0:02:52]} 7. Bg2 {[%clk 0:02:56]}  cxd4 {[%clk 0:02:49]} 8. Nxd4 {[%clk 0:02:57]}  Bc5 {[%clk 0:02:48]} 9. Nb3 {[%clk 0:02:56]}  Bb4 {[%clk 0:02:43]} 10. O-O {[%clk 0:02:55]}  d4 {[%clk 0:02:39]} 11. Nb5 {[%clk 0:02:36]}  O-O {[%clk 0:02:28]} 12. N5xd4 {[%clk 0:02:29]}  Nxd4 {[%clk 0:02:26]} 13. Qxd4 {[%clk 0:02:19]}  Qxd4 {[%clk 0:02:24]} 14. Nxd4 {[%clk 0:02:20]}  Rd8 {[%clk 0:02:23]} 15. Nb3 {[%clk 0:02:13]}  a5 {[%clk 0:02:21]} 16. a3 {[%clk 0:02:00]}  Be7 {[%clk 0:02:19]} 17. Bg5 {[%clk 0:01:05]}  h6 {[%clk 0:02:18]} 18. Bf4 {[%clk 0:00:43]}  Be6 {[%clk 0:02:07]} 19. Nd2 {[%clk 0:00:41]}  Nd5 {[%clk 0:02:04]} 20. Nf3 {[%clk 0:00:33]}  Nxf4 {[%clk 0:02:04]} 21. gxf4 {[%clk 0:00:34]}  Bf6 {[%clk 0:02:00]} 22. Ne5 {[%clk 0:00:32]}  Rd2 {[%clk 0:01:58]} 23. Bxb7 {[%clk 0:00:29]}  Rd4 {[%clk 0:01:58]} 24. e3 {[%clk 0:00:27]}  Bxe5 {[%clk 0:01:47]} 25. exd4 {[%clk 0:00:26]}  Rb8 {[%clk 0:01:45]} 26. fxe5 {[%clk 0:00:25]}  Rxb7 {[%clk 0:01:45]} 27. b4 {[%clk 0:00:22]}  axb4 {[%clk 0:01:45]} 28. axb4 {[%clk 0:00:23]}  Rxb4 {[%clk 0:01:45]} 29. Rad1 {[%clk 0:00:23]}  Bd5 {[%clk 0:01:44]} 30. f3 {[%clk 0:00:23]}  Kh7 {[%clk 0:01:40]} 31. Rf2 {[%clk 0:00:24]}  Rb3 {[%clk 0:01:39]} 32. Kg2 {[%clk 0:00:24]}  g5 {[%clk 0:01:37]} 33. Kg3 {[%clk 0:00:24]}  h5 {[%clk 0:01:35]} 34. h4 {[%clk 0:00:21]}  g4 {[%clk 0:01:34]} 35. Rc1 {[%clk 0:00:15]}  Bxf3 {[%clk 0:01:32]} 36. Kf4 {[%clk 0:00:15]}  Bd5 {[%clk 0:01:31]} 37. Rc5 {[%clk 0:00:15]}  Bf3 {[%clk 0:01:26]} 38. d5 {[%clk 0:00:13]}  Rd3 {[%clk 0:01:22]} 39. d6 {[%clk 0:00:12]}  Kg6 {[%clk 0:01:22]} 40. Rc7 {[%clk 0:00:10]}  Rd4+ {[%clk 0:01:14]} 41. Kg3 {[%clk 0:00:10]}  Rd5 {[%clk 0:01:13]} 42. Re7 {[%clk 0:00:09]}  Rd3 {[%clk 0:01:10]} 43. d7 {[%clk 0:00:07]}  Bc6+ {[%clk 0:01:09]} 44. Kf4 {[%clk 0:00:07]}  Bxd7 {[%clk 0:01:08]} 45. Rb2 {[%clk 0:00:05]}  Be6 {[%clk 0:01:07]} 46. Rb8 {[%clk 0:00:04]}  Rd4+ {[%clk 0:01:07]} 47. Ke3 {[%clk 0:00:04]}  Ra4 {[%clk 0:01:06]} 48. Rbe8 {[%clk 0:00:04]}  Ra3+ {[%clk 0:01:05]} 49. Kf4 {[%clk 0:00:04]}  Rf3+ {[%clk 0:01:05]} 50. Ke4 {[%clk 0:00:03]}  Bf5+ {[%clk 0:01:05]} 51. Kd4 {[%clk 0:00:04]}  Rf4+ {[%clk 0:01:03]} 52. Ke3 {[%clk 0:00:04]}  Re4+ {[%clk 0:01:02]} 53. Kf2 {[%clk 0:00:04]}  Be6 {[%clk 0:01:02]} 54. Rg8+ {[%clk 0:00:03]}  Kh7 {[%clk 0:01:01]} 55. Rg5 {[%clk 0:00:03]}  Kh6 {[%clk 0:00:58]} 56. Re8 {[%clk 0:00:03]}  Rf4+ {[%clk 0:00:52]} 57. Kg3 {[%clk 0:00:03]}  Rf3+ {[%clk 0:00:49]} 58. Kg2 {[%clk 0:00:03]}  Kh7 {[%clk 0:00:48]} 59. Rxh5+ {[%clk 0:00:04]}  Kg7 {[%clk 0:00:47]} 60. Rg5+ {[%clk 0:00:05]}  Kh7 {[%clk 0:00:47]} 61. h5 {[%clk 0:00:02]}  Bd5 {[%clk 0:00:44]} 62. Kg1 {[%clk 0:00:02]}  g3 {[%clk 0:00:43]} 63. Reg8 {[%clk 0:00:01]}  Be4 {[%clk 0:00:34]} 64. R8g7+ {[%clk 0:00:01]}  Kh6 {[%clk 0:00:34]} 65. Rxg3 {[%clk 0:00:02]}  Rxg3+ {[%clk 0:00:28]} 66. Rxg3 {[%clk 0:00:01]}  Kxh5 {[%clk 0:00:28]} 67. Kf2 {[%clk 0:00:02]}  Bd5 {[%clk 0:00:27]} 68. Ke3 {[%clk 0:00:02]}  Kh4 {[%clk 0:00:26]} 69. Kf4 {[%clk 0:00:02]}  Kh5 {[%clk 0:00:24]} 70. Rg7 {[%clk 0:00:02]}  Be6 {[%clk 0:00:23]} 71. Rg1 {[%clk 0:00:02]}  Kh6 {[%clk 0:00:21]} 72. Rg3 {[%clk 0:00:01]}  Kh5 {[%clk 0:00:21]} 73. Rg5+ {[%clk 0:00:01]}  Kh6 {[%clk 0:00:22]} 74. Rg1 {[%clk 0:00:01]}  Kh5 {[%clk 0:00:22]} 75. Ke4 {[%clk 0:00:02]}  Kh6 {[%clk 0:00:21]} 76. Kd4 {[%clk 0:00:02]}  Kh5 {[%clk 0:00:21]} 77. Kc5 {[%clk 0:00:03]}  Bg4 {[%clk 0:00:19]} 78. Kd6 {[%clk 0:00:03]}  Kg5 {[%clk 0:00:18]} 79. Ke7 {[%clk 0:00:03]}  Kf5 {[%clk 0:00:15]} 80. Rxg4 {[%clk 0:00:04]}  Kxg4 {[%clk 0:00:14]} 81. Kxf7 {[%clk 0:00:04]}  Kf5 {[%clk 0:00:15]} 82. e6 {[%clk 0:00:05]}  Kg5 {[%clk 0:00:16]} 83. e7 {[%clk 0:00:06]}  Kh5 {[%clk 0:00:16]} 84. e8=Q {[%clk 0:00:07]}  Kh6 {[%clk 0:00:16]} 85. Qg8 {[%clk 0:00:07]}  Kh5 {[%clk 0:00:16]} 86. Qg3 {[%clk 0:00:07]}  Kh6 {[%clk 0:00:16]} 87. Qg4 {[%clk 0:00:08]}  Kh7 {[%clk 0:00:14]} 88. Qh5# {[%clk 0:00:09]} 1-0


[Site "https://www.chess.com"]

[Event "Titled Tuesday Blitz August 08 Late 2023"]
[White "Maluco_do_Natal_00"]
[Black "Swicarz, Maciej"]
[BlackFideId "1113585"]
[WhiteElo "2075"]
[BlackElo "2435"]
[Result "0-1"]
[Round "2"]
[TimeControl "180+1"]
[Date "2023.08.08"]
[WhiteClock "0:00:02"]
[BlackClock "0:00:33"]
[Board "190"]

1. e4 {[%clk 0:03:00]}  c5 {[%clk 0:02:59]} 2. Nf3 {[%clk 0:02:56]}  d6 {[%clk 0:02:59]} 3. d4 {[%clk 0:02:56]}  cxd4 {[%clk 0:02:59]} 4. Nxd4 {[%clk 0:02:57]}  Nf6 {[%clk 0:03:00]} 5. Nc3 {[%clk 0:02:57]}  a6 {[%clk 0:03:00]} 6. Be3 {[%clk 0:02:58]}  e5 {[%clk 0:03:00]} 7. Nb3 {[%clk 0:02:57]}  Be7 {[%clk 0:03:00]} 8. f3 {[%clk 0:02:57]}  Be6 {[%clk 0:02:57]} 9. Qd2 {[%clk 0:02:57]}  h5 {[%clk 0:02:57]} 10. O-O-O {[%clk 0:02:56]}  Nbd7 {[%clk 0:02:57]} 11. h3 {[%clk 0:02:56]}  b5 {[%clk 0:02:54]} 12. a3 {[%clk 0:02:50]}  Rc8 {[%clk 0:02:54]} 13. Kb1 {[%clk 0:02:50]}  Qc7 {[%clk 0:02:50]} 14. Be2 {[%clk 0:02:10]}  Nb6 {[%clk 0:02:43]} 15. Na5 {[%clk 0:02:07]}  h4 {[%clk 0:02:17]} 16. f4 {[%clk 0:02:03]}  d5 {[%clk 0:02:02]} 17. fxe5 {[%clk 0:01:48]}  Nxe4 {[%clk 0:01:59]} 18. Nxe4 {[%clk 0:01:43]}  dxe4 {[%clk 0:02:00]} 19. Bg4 {[%clk 0:01:26]}  Nd5 {[%clk 0:01:46]} 20. Bd4 {[%clk 0:01:12]}  e3 {[%clk 0:01:41]} 21. Qe1 {[%clk 0:01:00]}  Qxc2+ {[%clk 0:01:38]} 22. Ka1 {[%clk 0:00:56]}  Nf4 {[%clk 0:01:19]} 23. Bxe6 {[%clk 0:00:40]}  fxe6 {[%clk 0:01:17]} 24. Qxe3 {[%clk 0:00:25]}  Nxg2 {[%clk 0:01:12]} 25. Qf3 {[%clk 0:00:11]}  Rf8 {[%clk 0:01:08]} 26. Qh5+ {[%clk 0:00:09]}  g6 {[%clk 0:01:08]} 27. Qg4 {[%clk 0:00:06]}  Nf4 {[%clk 0:00:58]} 28. Rc1 {[%clk 0:00:06]}  Qxc1+ {[%clk 0:00:56]} 29. Rxc1 {[%clk 0:00:07]}  Rxc1+ {[%clk 0:00:56]} 30. Ka2 {[%clk 0:00:07]}  g5 {[%clk 0:00:52]} 31. Nb7 {[%clk 0:00:07]}  Rc4 {[%clk 0:00:47]} 32. Bc3 {[%clk 0:00:06]}  Rf5 {[%clk 0:00:43]} 33. Nd6+ {[%clk 0:00:06]}  Bxd6 {[%clk 0:00:43]} 34. exd6 {[%clk 0:00:07]}  Nd5 {[%clk 0:00:41]} 35. Qh5+ {[%clk 0:00:06]}  Kd7 {[%clk 0:00:41]} 36. Qh7+ {[%clk 0:00:06]}  Kxd6 {[%clk 0:00:41]} 37. Qa7 {[%clk 0:00:05]}  Nxc3+ {[%clk 0:00:39]} 38. bxc3 {[%clk 0:00:05]}  Rxc3 {[%clk 0:00:39]} 39. Qxa6+ {[%clk 0:00:05]}  Rc6 {[%clk 0:00:38]} 40. Qa5 {[%clk 0:00:04]}  Rfc5 {[%clk 0:00:33]} 41. Qd2+ {[%clk 0:00:04]}  Ke7 {[%clk 0:00:33]} 42. Qf2 {[%clk 0:00:03]}  Rc2+ {[%clk 0:00:33]} 43. Qxc2 {[%clk 0:00:02]}  Rxc2+ {[%clk 0:00:33]} 0-1


[Site "https://www.chess.com"]

[Event "Titled Tuesday Blitz August 08 Late 2023"]
[White "Nikulina, Alena"]
[Black "chessmateto"]
[WhiteFideId "4172051"]
[WhiteElo "2074"]
[BlackElo "2432"]
[Result "0-1"]
[Round "2"]
[TimeControl "180+1"]
[Date "2023.08.08"]
[WhiteClock "0:00:26"]
[BlackClock "0:01:22"]
[Board "191"]

1. e4 {[%clk 0:03:00]}  c6 {[%clk 0:02:59]} 2. Nc3 {[%clk 0:02:59]}  d5 {[%clk 0:03:00]} 3. Qe2 {[%clk 0:02:59]}  dxe4 {[%clk 0:02:54]} 4. Nxe4 {[%clk 0:02:58]}  Bf5 {[%clk 0:02:53]} 5. g3 {[%clk 0:02:56]}  e6 {[%clk 0:02:47]} 6. Bg2 {[%clk 0:02:56]}  Nf6 {[%clk 0:02:46]} 7. Nxf6+ {[%clk 0:02:53]}  Qxf6 {[%clk 0:02:45]} 8. d3 {[%clk 0:02:51]}  Bb4+ {[%clk 0:02:44]} 9. c3 {[%clk 0:02:49]}  Bd6 {[%clk 0:02:43]} 10. d4 {[%clk 0:02:48]}  O-O {[%clk 0:02:43]} 11. Nf3 {[%clk 0:02:47]}  Nd7 {[%clk 0:02:42]} 12. h4 {[%clk 0:02:34]}  e5 {[%clk 0:02:30]} 13. dxe5 {[%clk 0:02:24]}  Nxe5 {[%clk 0:02:31]} 14. Nxe5 {[%clk 0:02:22]}  Bxe5 {[%clk 0:02:30]} 15. O-O {[%clk 0:02:17]}  Rfe8 {[%clk 0:02:24]} 16. Bg5 {[%clk 0:02:14]}  Qg6 {[%clk 0:02:17]} 17. Qc4 {[%clk 0:02:04]}  Bd3 {[%clk 0:02:16]} 18. Qb4 {[%clk 0:01:38]}  Bxf1 {[%clk 0:02:15]} 19. Bxf1 {[%clk 0:01:34]}  h6 {[%clk 0:02:14]} 20. Bf4 {[%clk 0:01:17]}  Bxf4 {[%clk 0:02:11]} 21. Qxf4 {[%clk 0:01:17]}  Qe4 {[%clk 0:01:58]} 22. Qc7 {[%clk 0:01:12]}  Re7 {[%clk 0:01:52]} 23. Qd6 {[%clk 0:01:10]}  Rae8 {[%clk 0:01:47]} 24. Rd1 {[%clk 0:01:05]}  Qg6 {[%clk 0:01:34]} 25. Qc5 {[%clk 0:00:51]}  Re1 {[%clk 0:01:31]} 26. Rd7 {[%clk 0:00:40]}  Qb1 {[%clk 0:01:23]} 27. Qc4 {[%clk 0:00:39]}  Rxf1+ {[%clk 0:01:23]} 28. Qxf1 {[%clk 0:00:30]}  Re1 {[%clk 0:01:22]} 29. Rd8+ {[%clk 0:00:26]}  Kh7 {[%clk 0:01:22]} 0-1


[Site "https://www.chess.com"]

[Event "Titled Tuesday Blitz August 08 Late 2023"]
[White "Karas, Marek"]
[Black "dorpato"]
[WhiteFideId "14928558"]
[WhiteElo "2428"]
[BlackElo "2046"]
[Result "1-0"]
[Round "2"]
[TimeControl "180+1"]
[Date "2023.08.08"]
[WhiteClock "0:01:58"]
[BlackClock "0:00:08"]
[Board "194"]

1. d4 {[%clk 0:03:00]}  Nf6 {[%clk 0:00:28]} 2. Nf3 {[%clk 0:02:58]}  g6 {[%clk 0:00:28]} 3. c4 {[%clk 0:02:58]}  d5 {[%clk 0:00:29]} 4. cxd5 {[%clk 0:02:52]}  Qxd5 {[%clk 0:00:28]} 5. Nc3 {[%clk 0:02:52]}  Qd8 {[%clk 0:00:29]} 6. e4 {[%clk 0:02:51]}  Bg7 {[%clk 0:00:29]} 7. Bc4 {[%clk 0:02:50]}  O-O {[%clk 0:00:29]} 8. O-O {[%clk 0:02:49]}  c6 {[%clk 0:00:29]} 9. Qe2 {[%clk 0:02:46]}  Nbd7 {[%clk 0:00:29]} 10. Bg5 {[%clk 0:02:45]}  Nb6 {[%clk 0:00:29]} 11. Bb3 {[%clk 0:02:45]}  Bg4 {[%clk 0:00:28]} 12. Rad1 {[%clk 0:02:43]}  h6 {[%clk 0:00:28]} 13. Bh4 {[%clk 0:02:43]}  Qc7 {[%clk 0:00:27]} 14. Bg3 {[%clk 0:02:42]}  Qd7 {[%clk 0:00:23]} 15. h3 {[%clk 0:02:39]}  Bh5 {[%clk 0:00:22]} 16. Rfe1 {[%clk 0:02:34]}  e6 {[%clk 0:00:21]} 17. Qe3 {[%clk 0:02:32]}  Ne8 {[%clk 0:00:20]} 18. Rd2 {[%clk 0:02:28]}  Nd6 {[%clk 0:00:20]} 19. Ne5 {[%clk 0:02:25]}  Bxe5 {[%clk 0:00:19]} 20. dxe5 {[%clk 0:02:26]}  Ndc4 {[%clk 0:00:19]} 21. Bxc4 {[%clk 0:02:24]}  Nxc4 {[%clk 0:00:19]} 22. Rxd7 {[%clk 0:02:24]}  Nxe3 {[%clk 0:00:19]} 23. Rxe3 {[%clk 0:02:23]}  Rfd8 {[%clk 0:00:19]} 24. Red3 {[%clk 0:02:22]}  Rxd7 {[%clk 0:00:19]} 25. Rxd7 {[%clk 0:02:23]}  Kf8 {[%clk 0:00:18]} 26. Rxb7 {[%clk 0:02:22]}  Rd8 {[%clk 0:00:18]} 27. Bf4 {[%clk 0:02:20]}  g5 {[%clk 0:00:16]} 28. Be3 {[%clk 0:02:19]}  Bg6 {[%clk 0:00:16]} 29. Bc5+ {[%clk 0:02:18]}  Kg7 {[%clk 0:00:16]} 30. Be7 {[%clk 0:02:17]}  Rd4 {[%clk 0:00:15]} 31. Bf6+ {[%clk 0:02:16]}  Kh7 {[%clk 0:00:15]} 32. Rxa7 {[%clk 0:02:15]}  Bxe4 {[%clk 0:00:15]} 33. Nxe4 {[%clk 0:02:15]}  Rxe4 {[%clk 0:00:15]} 34. Rxf7+ {[%clk 0:02:14]}  Kg6 {[%clk 0:00:16]} 35. Rg7+ {[%clk 0:02:14]}  Kf5 {[%clk 0:00:15]} 36. g4+ {[%clk 0:02:13]}  Kf4 {[%clk 0:00:15]} 37. Rf7 {[%clk 0:02:13]}  Kf3 {[%clk 0:00:14]} 38. Bxg5+ {[%clk 0:02:12]}  Ke2 {[%clk 0:00:13]} 39. Be3 {[%clk 0:02:12]}  Rb4 {[%clk 0:00:12]} 40. Rd7 {[%clk 0:02:08]}  Rxb2 {[%clk 0:00:12]} 41. a4 {[%clk 0:02:08]}  Rb1+ {[%clk 0:00:12]} 42. Kg2 {[%clk 0:02:08]}  Ra1 {[%clk 0:00:11]} 43. Rd2+ {[%clk 0:02:06]}  Ke1 {[%clk 0:00:11]} 44. Rc2 {[%clk 0:02:03]}  Rxa4 {[%clk 0:00:11]} 45. Rxc6 {[%clk 0:02:01]}  Re4 {[%clk 0:00:11]} 46. Rxe6 {[%clk 0:02:01]}  h5 {[%clk 0:00:11]} 47. gxh5 {[%clk 0:02:00]}  Rh4 {[%clk 0:00:11]} 48. h6 {[%clk 0:02:00]}  Ke2 {[%clk 0:00:11]} 49. Rg6 {[%clk 0:02:00]}  Re4 {[%clk 0:00:10]} 50. Rg4 {[%clk 0:01:59]}  Rxe5 {[%clk 0:00:10]} 51. Rh4 {[%clk 0:01:58]}  Re8 {[%clk 0:00:10]} 52. h7 {[%clk 0:01:58]}  Rh8 {[%clk 0:00:08]} 53. Bd4 {[%clk 0:01:58]} 1-0


[Site "https://www.chess.com"]

[Event "Titled Tuesday Blitz August 08 Late 2023"]
[White "Gabdushev, Ruslan"]
[Black "Dmitriev, Sergey"]
[WhiteFideId "4137833"]
[BlackFideId "14101785"]
[WhiteElo "2412"]
[BlackElo "1984"]
[Result "1-0"]
[Round "2"]
[TimeControl "180+1"]
[Date "2023.08.08"]
[WhiteClock "0:02:00"]
[BlackClock "0:01:25"]
[Board "200"]

1. b3 {[%clk 0:02:59]}  e5 {[%clk 0:02:53]} 2. Bb2 {[%clk 0:02:59]}  d6 {[%clk 0:02:53]} 3. e3 {[%clk 0:02:58]}  g6 {[%clk 0:02:53]} 4. d4 {[%clk 0:02:57]}  Bg7 {[%clk 0:02:52]} 5. dxe5 {[%clk 0:02:57]}  dxe5 {[%clk 0:02:50]} 6. Qxd8+ {[%clk 0:02:56]}  Kxd8 {[%clk 0:02:51]} 7. Na3 {[%clk 0:02:54]}  Bf5 {[%clk 0:02:49]} 8. O-O-O+ {[%clk 0:02:50]}  Ke8 {[%clk 0:02:47]} 9. f4 {[%clk 0:02:46]}  f6 {[%clk 0:02:40]} 10. fxe5 {[%clk 0:02:38]}  fxe5 {[%clk 0:02:39]} 11. Nf3 {[%clk 0:02:37]}  Nc6 {[%clk 0:02:37]} 12. Nc4 {[%clk 0:02:32]}  Nge7 {[%clk 0:02:05]} 13. Nfxe5 {[%clk 0:02:29]}  Nxe5 {[%clk 0:01:56]} 14. Bxe5 {[%clk 0:02:26]}  Bxe5 {[%clk 0:01:53]} 15. Nxe5 {[%clk 0:02:27]}  Rf8 {[%clk 0:01:49]} 16. Bc4 {[%clk 0:02:17]}  Rd8 {[%clk 0:01:40]} 17. g4 {[%clk 0:02:11]}  Be4 {[%clk 0:01:39]} 18. Rxd8+ {[%clk 0:02:09]}  Kxd8 {[%clk 0:01:33]} 19. Rd1+ {[%clk 0:02:09]}  Kc8 {[%clk 0:01:30]} 20. Be6+ {[%clk 0:02:01]}  Kb8 {[%clk 0:01:25]} 21. Nd7+ {[%clk 0:02:00]} 1-0


[Site "https://www.chess.com"]